[Event "European Online Club-ch-A 2021"]
[Site "Online"]
[Date "2021.03.27"]
[Round "6.5"]
[White "Finek, Vaclav"]
[Black "Pein, Malcolm"]
[Result "0-1"]
[ECO "E62"]
[WhiteElo "2361"]
[BlackElo "2309"]
[Annotator "NA"]
[PlyCount "110"]
[EventDate "2021.03.27"]
[EventType "team-tourn"]
[EventCountry "NET"]
[SourceTitle "playchess.com"]
[Source "ChessBase"]
[SourceQuality "1"]
[TimeControl "900+5"]

1. d4 {[%emt 0:00:00]} Nf6 {[%emt 0:00:06]} 2. c4 {[%emt 0:00:03]} g6 {[%emt 0:00:09]} 3. Nf3 {[%emt 0:00:05]} Bg7 {[%emt 0:00:03]} 4. g3 {[%emt 0:00:02]} O-O {[%emt 0:00:03]} 5. Bg2 {[%emt 0:00:02]} d6 {[%emt 0:00:06]} 6. O-O {[%emt 0:00:02]} c6 {[%emt 0:00:04]} 7. Nc3 {[%emt 0:00:08]} Qb6 {[%emt 0:00:02]} 8. e4 {[%emt 0:00:20]} Bg4 {[%emt 0:00:05]} 9. h3 {[%emt 0:00:50]} Bxf3 {[%emt 0:00:03]} 10. Bxf3 {[%emt 0:00:02]} Nfd7 {[%emt 0:00:13]} 11. Be3 {[%emt 0:00:55]} Qxb2 {[%emt 0:00:41]} 12. Qd3 {[%emt 0:00:37]} Qa3 {[%emt 0:04:17]} 13. Rab1 {[%emt 0:01:02]} c5 {[%emt 0:01:58]} 14. Rb3 {[%emt 0:01:07]} Qa5 {[%emt 0:00:37]} 15. Rb5 {[%emt 0:01:30]} Qd8 {[%emt 0:00:39]} 16. Bg2 {[%emt 0:03:36]} cxd4 {[%emt 0:00:46]} 17. Bxd4 {[%emt 0:00:06]} Nc6 {[%emt 0:00:31]} 18. Bxg7 {[%emt 0:00:10]} Kxg7 {[%emt 0:00:02]} 19. Nd5 {[%emt 0:00:41]} Nc5 {[%emt 0:02:14]} 20. Qc3+ {[%emt 0:00:14]} Kg8 {[%emt 0:00:29]} 21. e5 {[%emt 0:02:02]} a6 {[%emt 0:00:20]} 22. Rbb1 {[%emt 0:01:01]} dxe5 {[%emt 0:00:21]} 23. Nb6 {[%emt 0:00:18]} Rb8 {[%emt 0:00:24]} 24. Qe3 {[%emt 0:00:40]} Qd4 {[%emt 0:00:27]} 25. Qa3 {[%emt 0:00:42]} e4 {[%emt 0:00:38]} 26. Rbd1 {[%emt 0:00:20]} Nd3 {[%emt 0:00:06]} 27. Nd5 {[%emt 0:00:03]} e6 {[%emt 0:01:01]} 28. Ne3 {[%emt 0:00:16]} Nce5 {[%emt 0:00:11]} 29. Qa4 {[%emt 0:00:10]} b5 {[%emt 0:00:11]} 30. Qc2 {[%emt 0:00:05]} Rbc8 {[%emt 0:00:08]} 31. Qd2 {[%emt 0:00:05]} bxc4 {[%emt 0:00:05]} 32. Nc2 {[%emt 0:00:03]} Qb2 {[%emt 0:00:09]} 33. Bxe4 {[%emt 0:00:05]} Rfd8 {[%emt 0:00:11]} 34. Qe2 {[%emt 0:00:06]} Kg7 {[%emt 0:00:16]} 35. Rd2 {[%emt 0:00:14]} Qxa2 {[%emt 0:00:06]} 36. Rfd1 {[%emt 0:00:03]} Qb3 {[%emt 0:00:06]} 37. Kg2 {[%emt 0:00:03]} a5 {[%emt 0:00:01]} 38. f4 {[%emt 0:00:03]} Nc6 {[%emt 0:00:06]} 39. Bxd3 {[%emt 0:00:06]} cxd3 {[%emt 0:00:03]} 40. Rxd3 {[%emt 0:00:01]} Qb7 {[%emt 0:00:09]} 41. Kh2 {[%emt 0:00:08]} Qb5 {[%emt 0:00:03]} 42. Na3 {[%emt 0:00:10]} Qa6 {[%emt 0:00:06]} 43. Qb2+ {[%emt 0:00:02]} Kg8 {[%emt 0:00:05]} 44. Rxd8+ {[%emt 0:00:08]} Rxd8 {[%emt 0:00:01]} 45. Rxd8+ {[%emt 0:00:05]} Nxd8 {[%emt 0:00:02]} 46. Qd2 {[%emt 0:00:03]} Nc6 {[%emt 0:00:04]} 47. h4 {[%emt 0:00:04]} h5 {[%emt 0:00:02]} 48. Nc2 {[%emt 0:00:11]} Qc4 {[%emt 0:00:05]} 49. Ne3 {[%emt 0:00:01]} Qd4 {[%emt 0:00:03]} 50. Qe2 {[%emt 0:00:04]} a4 {[%emt 0:00:05]} 51. Nd1 {[%emt 0:00:08]} a3 {[%emt 0:00:06]} 52. Nf2 {[%emt 0:00:05]} Nb4 {[%emt 0:00:03]} 53. f5 {[%emt 0:00:07]} exf5 {[%emt 0:00:05]} 54. Nh3 {[%emt 0:00:04]} Qb2 {[%emt 0:00:04]} 55. Nf4 {[%emt 0:00:09]} Qxe2+ {[%emt 0:00:08]} 0-1

[Event "European Online Club-ch-A 2021"]
[Site "Online"]
[Date "2021.03.27"]
[Round "6.6"]
[White "De Verdier, Michael"]
[Black "Hrbek, Stepan"]
[Result "1-0"]
[ECO "A06"]
[WhiteElo "2291"]
[BlackElo "2230"]
[Annotator "NA"]
[PlyCount "107"]
[EventDate "2021.03.27"]
[EventType "team-tourn"]
[EventCountry "NET"]
[SourceTitle "playchess.com"]
[Source "ChessBase"]
[SourceQuality "1"]
[TimeControl "900+5"]

1. Nf3 {[%emt 0:00:00]} d5 {[%emt 0:00:16]} 2. e3 {[%emt 0:00:04]} Nf6 {[%emt 0:00:03]} 3. b3 {[%emt 0:00:03]} c5 {[%emt 0:00:59]} 4. Bb2 {[%emt 0:00:03]} g6 {[%emt 0:00:48]} 5. Bb5+ {[%emt 0:00:11]} Bd7 {[%emt 0:00:07]} 6. Qe2 {[%emt 0:00:03]} Bg7 {[%emt 0:00:24]} 7. O-O {[%emt 0:01:21]} O-O {[%emt 0:00:29]} 8. Bxd7 {[%emt 0:00:06]} Nbxd7 {[%emt 0:00:08]} 9. d3 {[%emt 0:00:10]} Qc7 {[%emt 0:02:13]} 10. c4 {[%emt 0:00:15]} e5 {[%emt 0:00:23]} 11. cxd5 {[%emt 0:01:21]} Nxd5 {[%emt 0:00:03]} 12. Nbd2 {[%emt 0:00:32]} b5 {[%emt 0:00:26]} 13. Rfc1 {[%emt 0:01:31]} Qb6 {[%emt 0:00:37]} 14. Ne4 {[%emt 0:00:42]} f5 {[%emt 0:01:00]} 15. Nc3 {[%emt 0:00:03]} Nb4 {[%emt 0:01:42]} 16. a3 {[%emt 0:00:47]} Nc6 {[%emt 0:00:02]} 17. Nd5 {[%emt 0:00:16]} Qb8 {[%emt 0:00:05]} 18. b4 {[%emt 0:00:53]} Qd6 {[%emt 0:00:16]} 19. e4 {[%emt 0:00:05]} Ne7 {[%emt 0:01:34]} 20. Nxe7+ {[%emt 0:03:06]} Qxe7 {[%emt 0:00:02]} 21. exf5 {[%emt 0:00:17]} Rxf5 {[%emt 0:00:22]} 22. Qe4 {[%emt 0:01:00]} Rc8 {[%emt 0:01:40]} 23. Qb7 {[%emt 0:00:29]} Rb8 {[%emt 0:02:33]} 24. Qd5+ {[%emt 0:00:07]} Qf7 {[%emt 0:00:21]} 25. Qxf7+ {[%emt 0:00:08]} Kxf7 {[%emt 0:00:03]} 26. bxc5 {[%emt 0:00:13]} Rc8 {[%emt 0:00:01]} 27. c6 {[%emt 0:00:44]} Nb8 {[%emt 0:00:01]} 28. Rc5 {[%emt 0:00:45]} e4 {[%emt 0:00:12]} 29. Rxf5+ {[%emt 0:00:12]} gxf5 {[%emt 0:00:02]} 30. Ng5+ {[%emt 0:00:10]} Kg6 {[%emt 0:00:13]} 31. Bxg7 {[%emt 0:00:02]} Kxg5 {[%emt 0:00:04]} 32. dxe4 {[%emt 0:00:08]} fxe4 {[%emt 0:00:04]} 33. h4+ {[%emt 0:00:52]} Kg6 {[%emt 0:00:19]} 34. Bd4 {[%emt 0:00:16]} Nxc6 {[%emt 0:00:06]} 35. Rc1 {[%emt 0:00:18]} Ne7 {[%emt 0:00:07]} 36. Re1 {[%emt 0:00:06]} Rc4 {[%emt 0:00:07]} 37. Bxa7 {[%emt 0:00:09]} Nc6 {[%emt 0:00:03]} 38. Be3 {[%emt 0:00:08]} b4 {[%emt 0:00:03]} 39. axb4 {[%emt 0:00:03]} Nxb4 {[%emt 0:00:01]} 40. Rb1 {[%emt 0:00:09]} Nd3 {[%emt 0:00:07]} 41. g4 {[%emt 0:00:06]} Ne5 {[%emt 0:00:04]} 42. h5+ {[%emt 0:00:15]} Kf6 {[%emt 0:00:09]} 43. g5+ {[%emt 0:00:02]} Kf5 {[%emt 0:00:05]} 44. Rb5 {[%emt 0:00:01]} Rc8 {[%emt 0:00:08]} 45. Bd4 {[%emt 0:00:12]} Re8 {[%emt 0:00:01]} 46. Kg2 {[%emt 0:00:07]} Kxg5 {[%emt 0:00:11]} 47. Rxe5+ {[%emt 0:00:02]} Rxe5 {[%emt 0:00:01]} 48. Bxe5 {[%emt 0:00:00]} Kxh5 {[%emt 0:00:03]} 49. Bd4 {[%emt 0:00:02]} Kg4 {[%emt 0:00:02]} 50. Be3 {[%emt 0:00:02]} h5 {[%emt 0:00:11]} 51. Kh2 {[%emt 0:00:01]} Kh4 {[%emt 0:00:02]} 52. Kg2 {[%emt 0:00:09]} Kg4 {[%emt 0:00:01]} 53. Ba7 {[%emt 0:00:01]} Kf4 {[%emt 0:00:09]} 54. Kh3 {[%emt 0:00:06]} 1-0

[Event "European Online Club-ch-A 2021"]
[Site "Online"]
[Date "2021.03.27"]
[Round "6.7"]
[White "Nemec, Jachym"]
[Black "Czopor, Maciej"]
[Result "0-1"]
[ECO "E11"]
[WhiteElo "2229"]
[BlackElo "2239"]
[Annotator "NA"]
[PlyCount "60"]
[EventDate "2021.03.27"]
[EventType "team-tourn"]
[EventCountry "NET"]
[SourceTitle "playchess.com"]
[Source "ChessBase"]
[SourceQuality "1"]
[TimeControl "900+5"]

1. d4 {[%emt 0:00:00]} Nf6 {[%emt 0:00:08]} 2. Nf3 {[%emt 0:00:08]} e6 {[%emt 0:00:08]} 3. c4 {[%emt 0:00:03]} Bb4+ {[%emt 0:00:10]} 4. Bd2 {[%emt 0:00:02]} Qe7 {[%emt 0:00:02]} 5. g3 {[%emt 0:00:07]} Nc6 {[%emt 0:00:09]} 6. Nc3 {[%emt 0:00:14]} O-O {[%emt 0:00:05]} 7. Bg2 {[%emt 0:00:03]} Bxc3 {[%emt 0:00:10]} 8. Bxc3 {[%emt 0:00:02]} Ne4 {[%emt 0:00:01]} 9. O-O {[%emt 0:00:26]} Nxc3 {[%emt 0:00:05]} 10. bxc3 {[%emt 0:00:03]} d6 {[%emt 0:00:29]} 11. Nd2 {[%emt 0:01:44]} Bd7 {[%emt 0:00:57]} 12. d5 {[%emt 0:00:34]} Na5 {[%emt 0:00:42]} 13. dxe6 {[%emt 0:02:29]} fxe6 {[%emt 0:00:36]} 14. Rb1 {[%emt 0:00:09]} Rab8 {[%emt 0:00:20]} 15. e3 {[%emt 0:00:04]} b6 {[%emt 0:00:17]} 16. Qe2 {[%emt 0:00:36]} Qf6 {[%emt 0:01:39]} 17. Rbc1 {[%emt 0:00:17]} Rbe8 {[%emt 0:01:32]} 18. h4 {[%emt 0:00:11]} Bc8 {[%emt 0:01:18]} 19. Nb3 {[%emt 0:01:54]} Nb7 {[%emt 0:00:16]} 20. Nd4 {[%emt 0:00:39]} Rf7 {[%emt 0:01:45]} 21. Rce1 {[%emt 0:02:14]} Na5 {[%emt 0:01:34]} 22. Be4 {[%emt 0:01:13]} Ba6 {[%emt 0:00:29]} 23. Nb5 {[%emt 0:01:04]} Qe5 {[%emt 0:02:16]} 24. Bd3 {[%emt 0:00:23]} Qc5 {[%emt 0:01:14]} 25. Qc2 {[%emt 0:00:35]} g6 {[%emt 0:00:11]} 26. Qa4 {[%emt 0:00:28]} Ref8 {[%emt 0:00:14]} 27. Re2 {[%emt 0:00:25]} Bb7 {[%emt 0:00:05]} 28. Qb4 {[%emt 0:00:35]} Qh5 {[%emt 0:00:14]} 29. e4 {[%emt 0:00:12]} Nc6 {[%emt 0:00:09]} 30. f4 {[%emt 0:00:23]} Nxb4 {[%emt 0:00:02]} 0-1

[Event "European Online Club-ch-A 2021"]
[Site "Online"]
[Date "2021.03.27"]
[Round "6.8"]
[White "Royal, Shreyas"]
[Black "Brozka, Karel"]
[Result "1-0"]
[ECO "A57"]
[WhiteElo "2121"]
[BlackElo "2080"]
[Annotator "NA"]
[PlyCount "91"]
[EventDate "2021.03.27"]
[EventType "team-tourn"]
[EventCountry "NET"]
[SourceTitle "playchess.com"]
[Source "ChessBase"]
[SourceQuality "1"]
[TimeControl "900+5"]

1. d4 {[%emt 0:00:00]} Nf6 {[%emt 0:00:05]} 2. c4 {[%emt 0:00:02]} c5 {[%emt 0:00:03]} 3. d5 {[%emt 0:00:03]} b5 {[%emt 0:00:03]} 4. Nf3 {[%emt 0:00:02]} g6 {[%emt 0:00:08]} 5. cxb5 {[%emt 0:00:06]} a6 {[%emt 0:00:03]} 6. b6 {[%emt 0:00:04]} d6 {[%emt 0:00:06]} 7. Nc3 {[%emt 0:00:15]} Nbd7 {[%emt 0:00:12]} 8. a4 {[%emt 0:00:33]} Nxb6 {[%emt 0:00:06]} 9. e4 {[%emt 0:00:05]} Bg7 {[%emt 0:00:07]} 10. Be2 {[%emt 0:00:34]} O-O {[%emt 0:00:04]} 11. O-O {[%emt 0:00:08]} a5 {[%emt 0:02:08]} 12. Bb5 {[%emt 0:00:41]} Bb7 {[%emt 0:03:56]} 13. Qe2 {[%emt 0:01:20]} Qc7 {[%emt 0:00:23]} 14. Nd2 {[%emt 0:01:07]} e6 {[%emt 0:00:48]} 15. dxe6 {[%emt 0:00:42]} fxe6 {[%emt 0:00:05]} 16. e5 {[%emt 0:00:04]} Nfd5 {[%emt 0:00:59]} 17. exd6 {[%emt 0:00:59]} Qxd6 {[%emt 0:00:54]} 18. Nc4 {[%emt 0:00:17]} Nxc4 {[%emt 0:00:30]} 19. Bxc4 {[%emt 0:00:04]} Rae8 {[%emt 0:00:24]} 20. Ne4 {[%emt 0:01:12]} Qc7 {[%emt 0:00:54]} 21. Bb5 {[%emt 0:02:32]} Rc8 {[%emt 0:01:26]} 22. Ng5 {[%emt 0:00:56]} Bd4 {[%emt 0:01:15]} 23. Nxe6 {[%emt 0:00:33]} Qf7 {[%emt 0:00:14]} 24. Nxf8 {[%emt 0:00:56]} Rxf8 {[%emt 0:00:09]} 25. Be3 {[%emt 0:00:26]} Nf4 {[%emt 0:00:23]} 26. Bxf4 {[%emt 0:00:08]} Qxf4 {[%emt 0:00:08]} 27. Bc6 {[%emt 0:01:23]} Bxc6 {[%emt 0:01:20]} 28. Qe6+ {[%emt 0:00:02]} Kh8 {[%emt 0:00:07]} 29. Qxc6 {[%emt 0:00:02]} Bxb2 {[%emt 0:00:14]} 30. Rab1 {[%emt 0:00:17]} Bd4 {[%emt 0:00:04]} 31. Qb5 {[%emt 0:00:01]} Bxf2+ {[%emt 0:00:03]} 32. Kh1 {[%emt 0:00:02]} Qd4 {[%emt 0:00:05]} 33. Qxa5 {[%emt 0:00:15]} Kg7 {[%emt 0:00:02]} 34. Rbd1 {[%emt 0:00:08]} Qe3 {[%emt 0:00:10]} 35. Rc1 {[%emt 0:00:18]} Qe5 {[%emt 0:00:07]} 36. Qc3 {[%emt 0:00:36]} Bd4 {[%emt 0:00:06]} 37. Qd3 {[%emt 0:00:04]} Bf2 {[%emt 0:00:04]} 38. a5 {[%emt 0:00:15]} Rf5 {[%emt 0:00:02]} 39. a6 {[%emt 0:00:13]} Rf7 {[%emt 0:00:08]} 40. Qc4 {[%emt 0:00:08]} Rf5 {[%emt 0:00:05]} 41. Qd3 {[%emt 0:00:13]} Rf7 {[%emt 0:00:07]} 42. Rb1 {[%emt 0:00:03]} Kh6 {[%emt 0:00:07]} 43. Qh3+ {[%emt 0:00:15]} Kg7 {[%emt 0:00:04]} 44. Rb7 {[%emt 0:00:08]} Qe2 {[%emt 0:00:06]} 45. Rxf7+ {[%emt 0:00:03]} Kg8 {[%emt 0:00:06]} 46. R7xf2 {[%emt 0:00:04]} 1-0

[Event "European Online Club-ch-A 2021"]
[Site "Online"]
[Date "2021.03.27"]
[Round "6.10"]
[White "Mitusov, Semen"]
[Black "Bacrot, Etienne"]
[Result "0-1"]
[ECO "B22"]
[WhiteElo "2297"]
[BlackElo "2678"]
[Annotator "ChessBase"]
[PlyCount "110"]
[EventDate "2021.03.27"]
[EventType "team-tourn"]
[EventCountry "NET"]
[SourceTitle "playchess.com"]
[Source "ChessBase"]
[SourceQuality "1"]
[TimeControl "900+5"]

1. e4 {[%emt 0:00:00]} c5 {[%emt 0:00:04]} 2. Nf3 {[%emt 0:00:07]} Nc6 {[%emt 0:00:02]} 3. c3 {[%emt 0:00:02]} d5 {[%emt 0:00:06]} 4. exd5 {[%emt 0:00:02]} Qxd5 {[%emt 0:00:01]} 5. d4 {[%emt 0:00:02]} Bf5 {[%emt 0:00:06]} 6. Be2 {[%emt 0:00:18]} cxd4 {[%emt 0:00:23]} 7. cxd4 {[%emt 0:00:18]} Bxb1 {[%emt 0:00:05]} 8. Rxb1 {[%emt 0:00:24]} e6 {[%emt 0:00:02]} 9. a3 {[%emt 0:00:16]} Nf6 {[%emt 0:01:06]} 10. O-O {[%emt 0:00:44]} Be7 {[%emt 0:00:03]} 11. h3 {[%emt 0:00:31]} O-O {[%emt 0:00:03]} 12. Be3 {[%emt 0:00:46]} Rfd8 {[%emt 0:00:27]} 13. Rc1 {[%emt 0:00:16]} a6 {[%emt 0:00:06]} 14. Bc4 {[%emt 0:00:18]} Qh5 {[%emt 0:00:12]} 15. Ne5 {[%emt 0:01:02]} Qxd1 {[%emt 0:02:30]} 16. Rfxd1 {[%emt 0:00:07]} Rdc8 {[%emt 0:01:47]} 17. Nxc6 {[%emt 0:02:12]} Rxc6 {[%emt 0:00:07]} 18. d5 {[%emt 0:00:19]} exd5 {[%emt 0:00:02]} 19. Bxd5 {[%emt 0:00:06]} Rxc1 {[%emt 0:00:02]} 20. Bxc1 {[%emt 0:00:06]} Nxd5 {[%emt 0:00:05]} 21. Rxd5 {[%emt 0:00:04]} Kf8 {[%emt 0:00:03]} 22. Rd7 {[%emt 0:00:20]} b5 {[%emt 0:00:03]} 23. Be3 {[%emt 0:00:38]} Ke8 {[%emt 0:00:42]} 24. Ra7 {[%emt 0:00:35]} Rxa7 {[%emt 0:00:05]} 25. Bxa7 {[%emt 0:00:02]} Kd7 {[%emt 0:01:14]} 26. Bd4 {[%emt 0:00:16]} Kc6 {[%emt 0:00:50]} 27. Bxg7 {[%emt 0:00:36]} Kd5 {[%emt 0:00:02]} 28. Kf1 {[%emt 0:00:36]} Kc4 {[%emt 0:00:06]} 29. Ke2 {[%emt 0:00:10]} Kb3 {[%emt 0:00:09]} 30. Kd1 {[%emt 0:00:10]} a5 {[%emt 0:00:44]} 31. Kc1 {[%emt 0:00:14]} Bc5 {[%emt 0:00:08]} 32. f3 {[%emt 0:00:13]} Be3+ {[%emt 0:00:05]} 33. Kb1 {[%emt 0:00:03]} b4 {[%emt 0:00:06]} 34. axb4 {[%emt 0:00:05]} axb4 {[%emt 0:00:01]} 35. Bf6 {[%emt 0:01:16]} Kc4 {[%emt 0:00:21]} 36. Ka2 {[%emt 0:00:14]} Bc5 {[%emt 0:01:59]} 37. b3+ {[%emt 0:00:33]} Kd3 {[%emt 0:00:02]} 38. f4 {[%emt 0:01:04]} Ke3 {[%emt 0:00:20]} 39. Be5 {[%emt 0:00:07]} Kf2 {[%emt 0:01:19]} 40. g4 {[%emt 0:00:05]} Kg3 {[%emt 0:00:03]} 41. Kb2 {[%emt 0:00:23]} Kxh3 {[%emt 0:00:16]} 42. g5 {[%emt 0:00:02]} Kg4 {[%emt 0:00:48]} 43. Kc2 {[%emt 0:00:05]} Kf3 {[%emt 0:00:41]} 44. Kd1 {[%emt 0:01:31]} Be3 {[%emt 0:00:48]} 45. Bd6 {[%emt 0:00:03]} Bxf4 {[%emt 0:00:01]} 46. Bxb4 {[%emt 0:00:02]} Bxg5 {[%emt 0:00:02]} 47. Ke1 {[%emt 0:00:03]} Be3 {[%emt 0:00:04]} 48. Be7 {[%emt 0:00:15]} f5 {[%emt 0:00:05]} 49. Kf1 {[%emt 0:00:07]} h5 {[%emt 0:00:07]} 50. b4 {[%emt 0:00:08]} f4 {[%emt 0:00:05]} 51. Bd8 {[%emt 0:00:39]} Kg3 {[%emt 0:00:02]} 52. b5 {[%emt 0:00:18]} h4 {[%emt 0:00:02]} 53. b6 {[%emt 0:00:02]} h3 {[%emt 0:00:02]} 54. b7 {[%emt 0:00:01]} Ba7 {[%emt 0:00:17]} 55. Bb6 {[%emt 0:00:18]} h2 {[%emt 0:00:10]} 0-1

[Event "European Online Club-ch-A 2021"]
[Site "Online"]
[Date "2021.03.27"]
[Round "6.12"]
[White "Babiy, Igor"]
[Black "Naiditsch, Arkadij"]
[Result "0-1"]
[ECO "A24"]
[WhiteElo "2241"]
[BlackElo "2649"]
[Annotator "ChessBase"]
[PlyCount "138"]
[EventDate "2021.03.27"]
[EventType "team-tourn"]
[EventCountry "NET"]
[SourceTitle "playchess.com"]
[Source "ChessBase"]
[SourceQuality "1"]
[TimeControl "900+5"]

1. Nf3 {[%emt 0:00:00]} Nf6 {[%emt 0:00:04]} 2. c4 {[%emt 0:00:03]} g6 {[%emt 0:00:02]} 3. Nc3 {[%emt 0:00:02]} Bg7 {[%emt 0:00:01]} 4. g3 {[%emt 0:00:02]} O-O {[%emt 0:00:02]} 5. Bg2 {[%emt 0:00:01]} d6 {[%emt 0:00:02]} 6. O-O {[%emt 0:00:02]} e5 {[%emt 0:00:02]} 7. d3 {[%emt 0:00:02]} c6 {[%emt 0:00:05]} 8. c5 {[%emt 0:00:04]} dxc5 {[%emt 0:00:16]} 9. Nxe5 {[%emt 0:00:03]} Re8 {[%emt 0:00:02]} 10. Nf3 {[%emt 0:01:00]} Bg4 {[%emt 0:00:03]} 11. h3 {[%emt 0:00:09]} Bf5 {[%emt 0:00:22]} 12. Bg5 {[%emt 0:00:32]} h6 {[%emt 0:00:04]} 13. Bf4 {[%emt 0:00:14]} Nbd7 {[%emt 0:00:28]} 14. Re1 {[%emt 0:00:21]} Rc8 {[%emt 0:00:09]} 15. Qb3 {[%emt 0:00:50]} b5 {[%emt 0:00:15]} 16. Rad1 {[%emt 0:00:16]} Qb6 {[%emt 0:00:21]} 17. a3 {[%emt 0:00:41]} a5 {[%emt 0:00:26]} 18. Qc2 {[%emt 0:00:50]} a4 {[%emt 0:00:44]} 19. Rc1 {[%emt 0:00:45]} c4 {[%emt 0:00:35]} 20. e4 {[%emt 0:00:05]} cxd3 {[%emt 0:00:06]} 21. Qxd3 {[%emt 0:00:00]} Be6 {[%emt 0:01:22]} 22. Be3 {[%emt 0:02:04]} Qa5 {[%emt 0:00:37]} 23. Qd2 {[%emt 0:00:19]} Kh7 {[%emt 0:00:36]} 24. Nd4 {[%emt 0:00:48]} Bc4 {[%emt 0:00:08]} 25. f4 {[%emt 0:00:07]} c5 {[%emt 0:00:20]} 26. Ncxb5 {[%emt 0:02:01]} Qxd2 {[%emt 0:00:10]} 27. Bxd2 {[%emt 0:00:00]} cxd4 {[%emt 0:01:07]} 28. Nd6 {[%emt 0:00:03]} Ba6 {[%emt 0:00:14]} 29. Nxc8 {[%emt 0:00:02]} Bxc8 {[%emt 0:00:39]} 30. e5 {[%emt 0:00:04]} Ng8 {[%emt 0:00:07]} 31. Rc7 {[%emt 0:00:08]} Ne7 {[%emt 0:00:28]} 32. Bb4 {[%emt 0:00:28]} Nf5 {[%emt 0:00:28]} 33. Rec1 {[%emt 0:00:55]} Nb6 {[%emt 0:00:03]} 34. R1c6 {[%emt 0:00:55]} Nxg3 {[%emt 0:00:33]} 35. Rxb6 {[%emt 0:00:58]} Be6 {[%emt 0:00:03]} 36. Kf2 {[%emt 0:00:29]} Nh5 {[%emt 0:00:10]} 37. Bd2 {[%emt 0:00:10]} g5 {[%emt 0:00:31]} 38. Bc6 {[%emt 0:00:02]} Rf8 {[%emt 0:00:13]} 39. Be4+ {[%emt 0:00:32]} Kg8 {[%emt 0:00:05]} 40. f5 {[%emt 0:00:43]} Bxe5 {[%emt 0:00:03]} 41. Rc5 {[%emt 0:00:02]} Bg3+ {[%emt 0:00:07]} 42. Kf3 {[%emt 0:00:13]} Bb3 {[%emt 0:00:09]} 43. Kg4 {[%emt 0:00:10]} Bf4 {[%emt 0:01:08]} 44. Bxf4 {[%emt 0:01:01]} Nxf4 {[%emt 0:00:40]} 45. Rxh6 {[%emt 0:00:02]} f6 {[%emt 0:00:07]} 46. Rc7 {[%emt 0:00:06]} d3 {[%emt 0:00:21]} 47. Rd7 {[%emt 0:00:20]} d2 {[%emt 0:01:39]} 48. Bf3 {[%emt 0:00:06]} Bf7 {[%emt 0:01:35]} 49. Rxd2 {[%emt 0:00:05]} Kg7 {[%emt 0:00:03]} 50. Rg6+ {[%emt 0:00:07]} Nxg6 {[%emt 0:00:40]} 51. fxg6 {[%emt 0:00:00]} Be6+ {[%emt 0:00:03]} 52. Kg3 {[%emt 0:00:03]} Rb8 {[%emt 0:00:17]} 53. h4 {[%emt 0:00:07]} Rb3 {[%emt 0:00:10]} 54. hxg5 {[%emt 0:00:07]} fxg5 {[%emt 0:00:00]} 55. Kf2 {[%emt 0:00:04]} Kxg6 {[%emt 0:00:11]} 56. Bd1 {[%emt 0:00:02]} Rb6 {[%emt 0:00:13]} 57. Bxa4 {[%emt 0:00:02]} g4 {[%emt 0:00:02]} 58. b4 {[%emt 0:00:05]} Kg5 {[%emt 0:00:05]} 59. Bd1 {[%emt 0:00:12]} Kh4 {[%emt 0:00:05]} 60. Rd3 {[%emt 0:00:06]} Bf5 {[%emt 0:00:04]} 61. Rd4 {[%emt 0:00:06]} Rf6 {[%emt 0:00:05]} 62. Kg2 {[%emt 0:00:07]} Re6 {[%emt 0:00:02]} 63. b5 {[%emt 0:00:04]} Be4+ {[%emt 0:00:02]} 64. Kg1 {[%emt 0:00:04]} Kg3 {[%emt 0:00:06]} 65. a4 {[%emt 0:00:06]} Bf3 {[%emt 0:00:01]} 66. Kf1 {[%emt 0:00:04]} Rh6 {[%emt 0:00:03]} 67. Bxf3 {[%emt 0:00:08]} gxf3 {[%emt 0:00:02]} 68. Ke1 {[%emt 0:00:03]} f2+ {[%emt 0:00:07]} 69. Ke2 {[%emt 0:00:07]} Re6+ {[%emt 0:00:02]} 0-1

[Event "European Online Club-ch-A 2021"]
[Site "Online"]
[Date "2021.03.27"]
[Round "6.14"]
[White "Schmidek, Emil"]
[Black "Kamsky, Gata"]
[Result "0-1"]
[ECO "E46"]
[WhiteElo "2402"]
[BlackElo "2665"]
[Annotator "ChessBase"]
[PlyCount "96"]
[EventDate "2021.03.27"]
[EventType "team-tourn"]
[EventCountry "NET"]
[SourceTitle "playchess.com"]
[Source "ChessBase"]
[SourceQuality "1"]
[TimeControl "900+5"]

1. d4 {[%emt 0:00:00]} Nf6 {[%emt 0:00:45]} 2. c4 {[%emt 0:00:03]} e6 {[%emt 0:00:03]} 3. Nc3 {[%emt 0:00:01]} Bb4 {[%emt 0:00:05]} 4. e3 {[%emt 0:00:02]} O-O {[%emt 0:00:07]} 5. Nge2 {[%emt 0:00:01]} d5 {[%emt 0:00:11]} 6. a3 {[%emt 0:00:04]} Be7 {[%emt 0:00:06]} 7. cxd5 {[%emt 0:00:01]} exd5 {[%emt 0:00:05]} 8. g3 {[%emt 0:00:01]} c6 {[%emt 0:00:42]} 9. Bg2 {[%emt 0:00:02]} Nbd7 {[%emt 0:00:08]} 10. O-O {[%emt 0:00:03]} Nb6 {[%emt 0:00:09]} 11. Qc2 {[%emt 0:01:00]} Re8 {[%emt 0:00:32]} 12. Rd1 {[%emt 0:00:20]} Bd7 {[%emt 0:00:20]} 13. Bd2 {[%emt 0:00:04]} Qc8 {[%emt 0:00:08]} 14. Nf4 {[%emt 0:00:18]} Bf5 {[%emt 0:00:07]} 15. Qb3 {[%emt 0:00:14]} Bd6 {[%emt 0:00:04]} 16. Nce2 {[%emt 0:00:22]} Nc4 {[%emt 0:00:21]} 17. Bb4 {[%emt 0:00:33]} Bc7 {[%emt 0:00:03]} 18. a4 {[%emt 0:01:00]} a5 {[%emt 0:00:06]} 19. Bc5 {[%emt 0:00:05]} Ne4 {[%emt 0:00:11]} 20. Rac1 {[%emt 0:00:58]} Ncd2 {[%emt 0:00:56]} 21. Qa2 {[%emt 0:00:28]} g5 {[%emt 0:00:06]} 22. Nh5 {[%emt 0:06:27]} Bg4 {[%emt 0:00:37]} 23. Rxd2 {[%emt 0:00:05]} Bxh5 {[%emt 0:00:05]} 24. Rdc2 {[%emt 0:00:05]} Qf5 {[%emt 0:00:15]} 25. Nc3 {[%emt 0:00:46]} Nxc5 {[%emt 0:02:41]} 26. dxc5 {[%emt 0:00:04]} Bg6 {[%emt 0:01:25]} 27. Qb3 {[%emt 0:00:48]} Rab8 {[%emt 0:00:08]} 28. Ne2 {[%emt 0:00:29]} h5 {[%emt 0:00:25]} 29. Nd4 {[%emt 0:00:41]} Qf6 {[%emt 0:00:18]} 30. Rd2 {[%emt 0:00:41]} h4 {[%emt 0:00:15]} 31. Qd1 {[%emt 0:01:01]} hxg3 {[%emt 0:00:32]} 32. hxg3 {[%emt 0:00:13]} Kg7 {[%emt 0:00:29]} 33. Qf3 {[%emt 0:00:27]} Qxf3 {[%emt 0:00:32]} 34. Bxf3 {[%emt 0:00:04]} f5 {[%emt 0:00:06]} 35. Kg2 {[%emt 0:00:14]} Kf6 {[%emt 0:00:11]} 36. Rh1 {[%emt 0:00:04]} Rh8 {[%emt 0:00:15]} 37. Rdd1 {[%emt 0:00:02]} Be5 {[%emt 0:00:24]} 38. Rxh8 {[%emt 0:00:10]} Rxh8 {[%emt 0:00:03]} 39. Rh1 {[%emt 0:00:03]} Rxh1 {[%emt 0:00:18]} 40. Kxh1 {[%emt 0:00:00]} f4 {[%emt 0:00:41]} 41. gxf4 {[%emt 0:00:02]} gxf4 {[%emt 0:00:02]} 42. Kg2 {[%emt 0:00:03]} Bxd4 {[%emt 0:01:06]} 43. exd4 {[%emt 0:00:00]} Be4 {[%emt 0:00:04]} 44. Bxe4 {[%emt 0:00:23]} dxe4 {[%emt 0:00:01]} 45. Kh3 {[%emt 0:00:07]} Kf5 {[%emt 0:00:05]} 46. Kg2 {[%emt 0:00:05]} Ke6 {[%emt 0:00:05]} 47. Kh3 {[%emt 0:00:02]} Kd5 {[%emt 0:00:06]} 48. Kg4 {[%emt 0:00:01]} f3 {[%emt 0:00:01]} 0-1